Department,Entity, Transaction Date, Expense Type, Expense Area, Supplier Name,Transaction number, Amount, Invoice Description
DFID,CSC,02/10/2017,Scholar Stipend,Award Costs,Scholar,PIN029379,4422.24,
DFID,CSC,02/10/2017,Scholar Allowances,Award Costs,Scholar,PIN029380,250,
DFID,CSC,02/10/2017,Scholar Allowances,Award Costs,Scholar,PIN029380,164.99,
DFID,CSC,02/10/2017,Scholar Stipend,Award Costs,Scholar,PIN029380,189.09,
DFID,CSC,02/10/2017,Scholar Stipend,Award Costs,Scholar,PIN029381,2403.07,
DFID,CSC,02/10/2017,Commission Meetings,Admin Costs,Commission Chair,PIN029507,2625,
DFID,CSC,02/10/2017,Bank Charges,Award Costs,Mastercard Prepaid Management Services Ltd,PIN029508,195.35,
DFID,CSC,02/10/2017,Scholar Allowances,Award Costs,Mastercard Prepaid Management Services Ltd,PIN029508,414,
DFID,CSC,02/10/2017,Scholar Stipend,Award Costs,Mastercard Prepaid Management Services Ltd,PIN029508,3960.91,
DFID,CSC,02/10/2017,Scholar Allowances,Award Costs,Mastercard Prepaid Management Services Ltd,PIN029508,414,
DFID,CSC,02/10/2017,Scholar Stipend,Award Costs,Mastercard Prepaid Management Services Ltd,PIN029508,3899.3,
DFID,CSC,02/10/2017,Scholar Allowances,Award Costs,Mastercard Prepaid Management Services Ltd,PIN029508,414,
DFID,CSC,02/10/2017,Scholar Stipend,Award Costs,Mastercard Prepaid Management Services Ltd,PIN029508,3195,
DFID,CSC,02/10/2017,Scholar Allowances,Award Costs,Mastercard Prepaid Management Services Ltd,PIN029508,414,
DFID,CSC,02/10/2017,Scholar Stipend,Award Costs,Mastercard Prepaid Management Services Ltd,PIN029508,3179.7,
DFID,CSC,02/10/2017,Scholar Stipend,Award Costs,Mastercard Prepaid Management Services Ltd,PIN029508,3229.99,
DFID,CSC,02/10/2017,Scholar Allowances,Award Costs,Mastercard Prepaid Management Services Ltd,PIN029508,414,
DFID,CSC,03/10/2017,Scholar Allowances,Award Costs,Scholar,PIN029382,250,
DFID,CSC,03/10/2017,Scholar Stipend,Award Costs,Scholar,PIN029382,1909.31,
DFID,CSC,03/10/2017,Bank Charges,Award Costs,Mastercard Prepaid Management Services Ltd,PIN029509,46.12,
DFID,CSC,03/10/2017,Visa Costs,Award Costs,Mastercard Prepaid Management Services Ltd,PIN029509,235,
DFID,CSC,03/10/2017,Scholar Allowances,Award Costs,Mastercard Prepaid Management Services Ltd,PIN029509,447.92,
DFID,CSC,03/10/2017,Scholar Stipend,Award Costs,Mastercard Prepaid Management Services Ltd,PIN029509,1623.46,
DFID,CSC,03/10/2017,Visa Costs,Award Costs,Mastercard Prepaid Management Services Ltd,PIN029509,235,
DFID,CSC,03/10/2017,Scholar Allowances,Award Costs,Mastercard Prepaid Management Services Ltd,PIN029509,447.92,
DFID,CSC,03/10/2017,Scholar Stipend,Award Costs,Mastercard Prepaid Management Services Ltd,PIN029509,1623.46,
DFID,CSC,03/10/2017,Bank Charges,Award Costs,Mastercard Prepaid Management Services Ltd,PIN029510,478.6,
DFID,CSC,03/10/2017,Scholar Stipend,Award Costs,Mastercard Prepaid Management Services Ltd,PIN029510,3299.97,
DFID,CSC,03/10/2017,Immigration Health Surcharge,Award Costs,Mastercard Prepaid Management Services Ltd,PIN029510,200,
DFID,CSC,03/10/2017,Scholar Allowances,Award Costs,Mastercard Prepaid Management Services Ltd,PIN029510,100,
DFID,CSC,03/10/2017,Visa Costs,Award Costs,Mastercard Prepaid Management Services Ltd,PIN029510,235,
DFID,CSC,03/10/2017,Scholar Allowances,Award Costs,Mastercard Prepaid Management Services Ltd,PIN029510,990,
DFID,CSC,03/10/2017,Scholar Stipend,Award Costs,Mastercard Prepaid Management Services Ltd,PIN029510,4881,
DFID,CSC,03/10/2017,Scholar Allowances,Award Costs,Mastercard Prepaid Management Services Ltd,PIN029510,414,
DFID,CSC,03/10/2017,Scholar Stipend,Award Costs,Mastercard Prepaid Management Services Ltd,PIN029510,3195,
DFID,CSC,03/10/2017,Scholar Allowances,Award Costs,Mastercard Prepaid Management Services Ltd,PIN029510,414,
DFID,CSC,03/10/2017,Scholar Stipend,Award Costs,Mastercard Prepaid Management Services Ltd,PIN029510,3264.98,
DFID,CSC,03/10/2017,Scholar Allowances,Award Costs,Mastercard Prepaid Management Services Ltd,PIN029510,414,
DFID,CSC,03/10/2017,Scholar Stipend,Award Costs,Mastercard Prepaid Management Services Ltd,PIN029510,3195,
DFID,CSC,03/10/2017,Scholar Allowances,Award Costs,Mastercard Prepaid Management Services Ltd,PIN029510,414,
DFID,CSC,03/10/2017,Scholar Stipend,Award Costs,Mastercard Prepaid Management Services Ltd,PIN029510,2689.84,
DFID,CSC,03/10/2017,Scholar Allowances,Award Costs,Mastercard Prepaid Management Services Ltd,PIN029510,414,
DFID,CSC,03/10/2017,Scholar Stipend,Award Costs,Mastercard Prepaid Management Services Ltd,PIN029510,3229.99,
DFID,CSC,03/10/2017,Scholar Allowances,Award Costs,Mastercard Prepaid Management Services Ltd,PIN029510,100,
DFID,CSC,03/10/2017,Visa Costs,Award Costs,Mastercard Prepaid Management Services Ltd,PIN029510,89,
DFID,CSC,03/10/2017,Scholar Allowances,Award Costs,Mastercard Prepaid Management Services Ltd,PIN029510,914.64,
DFID,CSC,03/10/2017,Scholar Stipend,Award Costs,Mastercard Prepaid Management Services Ltd,PIN029510,6123.33,
DFID,CSC,03/10/2017,Scholar Allowances,Award Costs,Mastercard Prepaid Management Services Ltd,PIN029510,414,
DFID,CSC,03/10/2017,Scholar Stipend,Award Costs,Mastercard Prepaid Management Services Ltd,PIN029510,3229.99,
DFID,CSC,03/10/2017,Scholar Stipend,Award Costs,Mastercard Prepaid Management Services Ltd,PIN029510,-235,
DFID,CSC,03/10/2017,Scholar Stipend,Award Costs,Mastercard Prepaid Management Services Ltd,PIN029510,-235,
DFID,CSC,03/10/2017,Scholar Stipend,Award Costs,Mastercard Prepaid Management Services Ltd,PIN029510,-235,
DFID,CSC,03/10/2017,Scholar Stipend,Award Costs,Mastercard Prepaid Management Services Ltd,PIN029510,1623.46,
DFID,CSC,03/10/2017,Visa Costs,Award Costs,Mastercard Prepaid Management Services Ltd,PIN029510,235,
DFID,CSC,03/10/2017,Scholar Allowances,Award Costs,Mastercard Prepaid Management Services Ltd,PIN029510,447.92,
DFID,CSC,03/10/2017,Scholar Stipend,Award Costs,Mastercard Prepaid Management Services Ltd,PIN029510,1623.46,
DFID,CSC,03/10/2017,Visa Costs,Award Costs,Mastercard Prepaid Management Services Ltd,PIN029510,235,
DFID,CSC,03/10/2017,Scholar Allowances,Award Costs,Mastercard Prepaid Management Services Ltd,PIN029510,447.92,
DFID,CSC,03/10/2017,Scholar Stipend,Award Costs,Mastercard Prepaid Management Services Ltd,PIN029510,1623.46,
DFID,CSC,03/10/2017,Visa Costs,Award Costs,Mastercard Prepaid Management Services Ltd,PIN029510,235,
DFID,CSC,03/10/2017,Scholar Allowances,Award Costs,Mastercard Prepaid Management Services Ltd,PIN029510,447.92,
DFID,CSC,03/10/2017,Scholar Stipend,Award Costs,Mastercard Prepaid Management Services Ltd,PIN029510,1623.46,
DFID,CSC,03/10/2017,Scholar Allowances,Award Costs,Mastercard Prepaid Management Services Ltd,PIN029510,447.92,
DFID,CSC,03/10/2017,Scholar Allowances,Award Costs,Mastercard Prepaid Management Services Ltd,PIN029510,414,
DFID,CSC,03/10/2017,Visa Costs,Award Costs,Mastercard Prepaid Management Services Ltd,PIN029510,235,
DFID,CSC,04/10/2017,Scholar Stipend,Award Costs,Scholar,PIN029387,3195,
DFID,CSC,04/10/2017,Scholar Stipend,Award Costs,Scholar,PIN029389,3195,
DFID,CSC,04/10/2017,Scholar Stipend,Award Costs,Scholar,PIN029390,3195,
DFID,CSC,04/10/2017,Scholar Stipend,Award Costs,Scholar,PIN029391,3195,
DFID,CSC,04/10/2017,Bank Charges,Award Costs,Mastercard Prepaid Management Services Ltd,PIN029511,98.56,
DFID,CSC,04/10/2017,Scholar Allowances,Award Costs,Mastercard Prepaid Management Services Ltd,PIN029511,414,
DFID,CSC,04/10/2017,Scholar Stipend,Award Costs,Mastercard Prepaid Management Services Ltd,PIN029511,3649.87,
DFID,CSC,04/10/2017,Visa Costs,Award Costs,Mastercard Prepaid Management Services Ltd,PIN029511,235,
DFID,CSC,04/10/2017,Scholar Allowances,Award Costs,Mastercard Prepaid Management Services Ltd,PIN029511,895.83,
DFID,CSC,04/10/2017,Scholar Stipend,Award Costs,Mastercard Prepaid Management Services Ltd,PIN029511,4660.9,
DFID,CSC,05/10/2017,Scholar Stipend,Award Costs,Scholar,PIN029383,521.5,
DFID,CSC,05/10/2017,Scholar Stipend,Award Costs,Scholar,PIN029384,3129,
DFID,CSC,05/10/2017,Scholar Allowances,Award Costs,Scholar,PIN029386,250,
DFID,CSC,05/10/2017,Scholar Stipend,Award Costs,Scholar,PIN029386,1239.95,
DFID,CSC,05/10/2017,Bank Charges,Award Costs,Mastercard Prepaid Management Services Ltd,PIN029513,339.7,
DFID,CSC,05/10/2017,Scholar Allowances,Award Costs,Mastercard Prepaid Management Services Ltd,PIN029513,414,
DFID,CSC,05/10/2017,Scholar Stipend,Award Costs,Mastercard Prepaid Management Services Ltd,PIN029513,3144.71,
DFID,CSC,05/10/2017,Scholar Allowances,Award Costs,Mastercard Prepaid Management Services Ltd,PIN029513,414,
DFID,CSC,05/10/2017,Scholar Stipend,Award Costs,Mastercard Prepaid Management Services Ltd,PIN029513,3264.98,
DFID,CSC,05/10/2017,Scholar Allowances,Award Costs,Mastercard Prepaid Management Services Ltd,PIN029513,414,
DFID,CSC,05/10/2017,Scholar Stipend,Award Costs,Mastercard Prepaid Management Services Ltd,PIN029513,3918,
DFID,CSC,05/10/2017,Visa Costs,Award Costs,Mastercard Prepaid Management Services Ltd,PIN029513,235,
DFID,CSC,05/10/2017,Scholar Allowances,Award Costs,Mastercard Prepaid Management Services Ltd,PIN029513,671.88,
DFID,CSC,05/10/2017,Scholar Allowances,Award Costs,Mastercard Prepaid Management Services Ltd,PIN029513,447.92,
DFID,CSC,05/10/2017,Scholar Stipend,Award Costs,Mastercard Prepaid Management Services Ltd,PIN029513,1361.61,
DFID,CSC,05/10/2017,Visa Costs,Award Costs,Mastercard Prepaid Management Services Ltd,PIN029513,235,
DFID,CSC,05/10/2017,Scholar Allowances,Award Costs,Mastercard Prepaid Management Services Ltd,PIN029513,559.9,
DFID,CSC,05/10/2017,Scholar Stipend,Award Costs,Mastercard Prepaid Management Services Ltd,PIN029513,2078.49,
DFID,CSC,05/10/2017,Visa Costs,Award Costs,Mastercard Prepaid Management Services Ltd,PIN029513,235,
DFID,CSC,05/10/2017,Scholar Allowances,Award Costs,Mastercard Prepaid Management Services Ltd,PIN029513,895.83,
DFID,CSC,05/10/2017,Scholar Stipend,Award Costs,Mastercard Prepaid Management Services Ltd,PIN029513,5326.13,
DFID,CSC,05/10/2017,Visa Costs,Award Costs,Mastercard Prepaid Management Services Ltd,PIN029513,235,
DFID,CSC,05/10/2017,Scholar Allowances,Award Costs,Mastercard Prepaid Management Services Ltd,PIN029513,895.83,
DFID,CSC,05/10/2017,Scholar Stipend,Award Costs,Mastercard Prepaid Management Services Ltd,PIN029513,6389.09,
DFID,CSC,05/10/2017,Scholar Stipend,Award Costs,Mastercard Prepaid Management Services Ltd,PIN029513,2598.11,
DFID,CSC,05/10/2017,Visa Costs,Award Costs,Mastercard Prepaid Management Services Ltd,PIN029513,235,
DFID,CSC,02/10/2017,Scholar Stipend,Award Costs,Scholar,PIN029378,1597.5,
DFID,CSC,06/10/2017,Scholar Allowances,Award Costs,Scholar,PIN029399,541.96,
DFID,CSC,06/10/2017,Tuition Fee,Award Costs,University of Bristol,PIN029400,15760,
DFID,CSC,06/10/2017,Tuition Fee,Award Costs,University of Bristol,PIN029401,11600,
DFID,CSC,06/10/2017,Tuition Fee,Award Costs,University of Bristol,PIN029402,15760,
DFID,CSC,06/10/2017,Tuition Fee,Award Costs,University of Bristol,PIN029403,15200,
DFID,CSC,06/10/2017,Tuition Fee,Award Costs,University of Bristol,PIN029404,15520,
DFID,CSC,06/10/2017,Tuition Fee,Award Costs,University of Bristol,PIN029405,14800,
DFID,CSC,06/10/2017,Tuition Fee,Award Costs,University of Bristol,PIN029406,11600,
DFID,CSC,06/10/2017,Tuition Fee,Award Costs,Pembroke College,PIN029407,19111.2,
DFID,CSC,06/10/2017,Scholar Allowances,Award Costs,Cranfield University,PIN029409,225,
DFID,CSC,06/10/2017,Scholar Allowances,Award Costs,Cranfield University,PIN029409,200,
DFID,CSC,06/10/2017,Visa Costs,Award Costs,Cranfield University,PIN029409,85.31,
DFID,CSC,06/10/2017,Scholar Allowances,Award Costs,Cranfield University,PIN029410,225,
DFID,CSC,06/10/2017,Scholar Allowances,Award Costs,Cranfield University,PIN029410,200,
DFID,CSC,06/10/2017,Visa Costs,Award Costs,Cranfield University,PIN029410,85.31,
DFID,CSC,06/10/2017,Tuition Fee,Award Costs,Liverpool School of Tropical Medicine,PIN029411,14960,
DFID,CSC,06/10/2017,Visa Costs,Award Costs,Cranfield University,PIN029412,101.37,
DFID,CSC,06/10/2017,Scholar Allowances,Award Costs,Cranfield University,PIN029412,225,
DFID,CSC,06/10/2017,Scholar Allowances,Award Costs,Cranfield University,PIN029412,200,
DFID,CSC,06/10/2017,Scholar Allowances,Award Costs,Cranfield University,PIN029413,225,
DFID,CSC,06/10/2017,Scholar Allowances,Award Costs,Cranfield University,PIN029413,200,
DFID,CSC,06/10/2017,Visa Costs,Award Costs,Cranfield University,PIN029413,75.6,
DFID,CSC,06/10/2017,Tuition Fee,Award Costs,University of Glasgow,PIN029415,21000,
DFID,CSC,06/10/2017,Tuition Fee,Award Costs,University of Glasgow,PIN029416,19500,
DFID,CSC,06/10/2017,Tuition Fee,Award Costs,Queen Margaret University,PIN029417,13500,
DFID,CSC,06/10/2017,Scholar Allowances,Award Costs,Queen Margaret University,PIN029418,500,
DFID,CSC,06/10/2017,Tuition Fee,Award Costs,University of Sheffield,PIN029419,12200,
DFID,CSC,06/10/2017,Tuition Fee,Award Costs,University of Sheffield,PIN029420,13200,
DFID,CSC,06/10/2017,Tuition Fee,Award Costs,University of Sheffield,PIN029421,13800,
DFID,CSC,06/10/2017,Tuition Fee,Award Costs,University of Sheffield,PIN029422,15000,
DFID,CSC,06/10/2017,Tuition Fee,Award Costs,University of Sheffield,PIN029423,11600,
DFID,CSC,06/10/2017,Tuition Fee,Award Costs,University of Sheffield,PIN029424,17000,
DFID,CSC,06/10/2017,Award Support Grant,Award Costs,University of Sheffield,PIN029425,2975,
DFID,CSC,06/10/2017,Award Support Grant,Award Costs,University of Sheffield,PIN029425,800,
DFID,CSC,06/10/2017,Tuition Fee,Award Costs,University of Sheffield,PIN029426,12200,
DFID,CSC,06/10/2017,Tuition Fee,Award Costs,University of Sheffield,PIN029427,19500,
DFID,CSC,06/10/2017,Tuition Fee,Award Costs,University of Sheffield,PIN029428,16376,
DFID,CSC,06/10/2017,Tuition Fee,Award Costs,University of Sheffield,PIN029429,13200,
DFID,CSC,06/10/2017,Award Support Grant,Award Costs,University of Stirling,PIN029430,3000,
DFID,CSC,06/10/2017,Tuition Fee,Award Costs,University of Southampton,PIN029431,11964,
DFID,CSC,06/10/2017,Tuition Fee,Award Costs,University of Southampton,PIN029432,11964,
DFID,CSC,06/10/2017,Tuition Fee,Award Costs,University of Southampton,PIN029433,17088,
DFID,CSC,06/10/2017,Tuition Fee,Award Costs,University of Southampton,PIN029434,11964,
DFID,CSC,06/10/2017,Tuition Fee,Award Costs,The University of Warwick,PIN029435,17504,
DFID,CSC,06/10/2017,Tuition Fee,Award Costs,The University of Warwick,PIN029436,12984,
DFID,CSC,06/10/2017,Tuition Fee,Award Costs,The University of Warwick,PIN029437,12984,
DFID,CSC,06/10/2017,Tuition Fee,Award Costs,The University of Warwick,PIN029438,16584,
DFID,CSC,06/10/2017,Tuition Fee,Award Costs,The University of Warwick,PIN029439,16584,
DFID,CSC,06/10/2017,Tuition Fee,Award Costs,The University of York,PIN029440,11653,
DFID,CSC,06/10/2017,Tuition Fee,Award Costs,The University of York,PIN029441,12077,
DFID,CSC,06/10/2017,Tuition Fee,Award Costs,Linacre College Oxford,PIN029442,3021,
DFID,CSC,06/10/2017,Tuition Fee,Award Costs,Linacre College Oxford,PIN029442,15468,
DFID,CSC,06/10/2017,Tuition Fee,Award Costs,Linacre College Oxford,PIN029443,3021,
DFID,CSC,06/10/2017,Tuition Fee,Award Costs,Linacre College Oxford,PIN029443,15468,
DFE,CSC,06/10/2017,Tuition Fee,Award Costs,St Hughs College Oxford,PIN029444,19335,
DFE,CSC,06/10/2017,Tuition Fee,Award Costs,St Hughs College Oxford,PIN029444,3021,
DFID,CSC,06/10/2017,Award Support Grant,Award Costs,University of Reading,PIN029445,5000,
DFID,CSC,06/10/2017,Tuition Fee,Award Costs,University of Reading,PIN029445,14720,
DFID,CSC,06/10/2017,Bank Charges,Award Costs,Mastercard Prepaid Management Services Ltd,PIN029514,132.23,
DFID,CSC,06/10/2017,Scholar Allowances,Award Costs,Mastercard Prepaid Management Services Ltd,PIN029514,414,
DFID,CSC,06/10/2017,Scholar Stipend,Award Costs,Mastercard Prepaid Management Services Ltd,PIN029514,3299.97,
DFID,CSC,06/10/2017,Scholar Allowances,Award Costs,Mastercard Prepaid Management Services Ltd,PIN029514,414,
DFID,CSC,06/10/2017,Scholar Stipend,Award Costs,Mastercard Prepaid Management Services Ltd,PIN029514,3109.72,
DFID,CSC,06/10/2017,Scholar Allowances,Award Costs,Mastercard Prepaid Management Services Ltd,PIN029514,100,
DFID,CSC,06/10/2017,Visa Costs,Award Costs,Mastercard Prepaid Management Services Ltd,PIN029514,89,
DFID,CSC,06/10/2017,Scholar Allowances,Award Costs,Mastercard Prepaid Management Services Ltd,PIN029514,914.64,
DFID,CSC,06/10/2017,Scholar Stipend,Award Costs,Mastercard Prepaid Management Services Ltd,PIN029514,4881,
DFID,CSC,09/10/2017,Scholar Allowances,Award Costs,Scholar,PIN029447,250,
DFID,CSC,09/10/2017,Scholar Stipend,Award Costs,Scholar,PIN029447,979.71,
DFID,CSC,09/10/2017,Scholar Allowances,Award Costs,Scholar,PIN029448,95.67,
DFID,CSC,09/10/2017,Scholar Allowances,Award Costs,Scholar,PIN029448,142.65,
DFID,CSC,09/10/2017,Scholar Stipend,Award Costs,Scholar,PIN029448,2334.03,
DFID,CSC,09/10/2017,Bank Charges,Award Costs,Mastercard Prepaid Management Services Ltd,PIN029512,76.25,
DFID,CSC,09/10/2017,Visa Costs,Award Costs,Mastercard Prepaid Management Services Ltd,PIN029512,235,
DFID,CSC,09/10/2017,Scholar Allowances,Award Costs,Mastercard Prepaid Management Services Ltd,PIN029512,895.83,
DFID,CSC,09/10/2017,Scholar Stipend,Award Costs,Mastercard Prepaid Management Services Ltd,PIN029512,6493.83,
DFID,CSC,09/10/2017,Bank Charges,Award Costs,Mastercard Prepaid Management Services Ltd,PIN029515,255.51,
DFID,CSC,09/10/2017,Scholar Allowances,Award Costs,Mastercard Prepaid Management Services Ltd,PIN029515,414,
DFID,CSC,09/10/2017,Scholar Stipend,Award Costs,Mastercard Prepaid Management Services Ltd,PIN029515,3144.71,
DFID,CSC,09/10/2017,Scholar Allowances,Award Costs,Mastercard Prepaid Management Services Ltd,PIN029515,100,
DFID,CSC,09/10/2017,Visa Costs,Award Costs,Mastercard Prepaid Management Services Ltd,PIN029515,89,
DFID,CSC,09/10/2017,Scholar Stipend,Award Costs,Mastercard Prepaid Management Services Ltd,PIN029515,4881,
DFID,CSC,09/10/2017,Scholar Allowances,Award Costs,Mastercard Prepaid Management Services Ltd,PIN029515,414,
DFID,CSC,09/10/2017,Scholar Stipend,Award Costs,Mastercard Prepaid Management Services Ltd,PIN029515,3004.75,
DFID,CSC,09/10/2017,Scholar Allowances,Award Costs,Mastercard Prepaid Management Services Ltd,PIN029515,414,
DFID,CSC,09/10/2017,Scholar Stipend,Award Costs,Mastercard Prepaid Management Services Ltd,PIN029515,3074.73,
DFID,CSC,09/10/2017,Visa Costs,Award Costs,Mastercard Prepaid Management Services Ltd,PIN029515,235,
DFID,CSC,09/10/2017,Scholar Allowances,Award Costs,Mastercard Prepaid Management Services Ltd,PIN029515,559.9,
DFID,CSC,09/10/2017,Scholar Stipend,Award Costs,Mastercard Prepaid Management Services Ltd,PIN029515,2078.49,
DFID,CSC,09/10/2017,Visa Costs,Award Costs,Mastercard Prepaid Management Services Ltd,PIN029515,235,
DFID,CSC,09/10/2017,Scholar Allowances,Award Costs,Mastercard Prepaid Management Services Ltd,PIN029515,895.83,
DFID,CSC,09/10/2017,Scholar Stipend,Award Costs,Mastercard Prepaid Management Services Ltd,PIN029515,5094.73,
DFID,CSC,09/10/2017,Scholar Allowances,Award Costs,Mastercard Prepaid Management Services Ltd,PIN029515,914.64,
DFID,CSC,10/10/2017,Scholar Allowances,Award Costs,Mastercard Prepaid Management Services Ltd,PIN029775,414,
DFID,CSC,10/10/2017,Scholar Stipend,Award Costs,Mastercard Prepaid Management Services Ltd,PIN029775,3039.74,
DFID,CSC,10/10/2017,Immigration Health Surcharge,Award Costs,Mastercard Prepaid Management Services Ltd,PIN029775,200,
DFID,CSC,10/10/2017,Scholar Allowances,Award Costs,Mastercard Prepaid Management Services Ltd,PIN029775,100,
DFID,CSC,10/10/2017,Visa Costs,Award Costs,Mastercard Prepaid Management Services Ltd,PIN029775,235,
DFID,CSC,10/10/2017,Scholar Allowances,Award Costs,Mastercard Prepaid Management Services Ltd,PIN029775,990,
DFID,CSC,10/10/2017,Scholar Stipend,Award Costs,Mastercard Prepaid Management Services Ltd,PIN029775,4643.7,
DFID,CSC,10/10/2017,Scholar Allowances,Award Costs,Mastercard Prepaid Management Services Ltd,PIN029775,414,
DFID,CSC,10/10/2017,Scholar Stipend,Award Costs,Mastercard Prepaid Management Services Ltd,PIN029775,3074.73,
DFID,CSC,10/10/2017,Visa Costs,Award Costs,Mastercard Prepaid Management Services Ltd,PIN029775,235,
DFID,CSC,10/10/2017,Scholar Allowances,Award Costs,Mastercard Prepaid Management Services Ltd,PIN029775,447.92,
DFID,CSC,10/10/2017,Scholar Stipend,Award Costs,Mastercard Prepaid Management Services Ltd,PIN029775,2013.54,
DFID,CSC,10/10/2017,Visa Costs,Award Costs,Mastercard Prepaid Management Services Ltd,PIN029775,235,
DFID,CSC,10/10/2017,Scholar Allowances,Award Costs,Mastercard Prepaid Management Services Ltd,PIN029775,559.9,
DFID,CSC,10/10/2017,Scholar Stipend,Award Costs,Mastercard Prepaid Management Services Ltd,PIN029775,2078.49,
DFID,CSC,10/10/2017,Bank Charges,Award Costs,Mastercard Prepaid Management Services Ltd,PIN029775,186.81,
DFID,CSC,12/10/2017,Bank Charges,Award Costs,Mastercard Prepaid Management Services Ltd,PIN029776,221.85,
DFID,CSC,12/10/2017,Scholar Allowances,Award Costs,Mastercard Prepaid Management Services Ltd,PIN029776,414,
DFID,CSC,12/10/2017,Scholar Stipend,Award Costs,Mastercard Prepaid Management Services Ltd,PIN029776,2969.76,
DFID,CSC,12/10/2017,Scholar Allowances,Award Costs,Mastercard Prepaid Management Services Ltd,PIN029776,100,
DFID,CSC,12/10/2017,Visa Costs,Award Costs,Mastercard Prepaid Management Services Ltd,PIN029776,89,
DFID,CSC,12/10/2017,Scholar Allowances,Award Costs,Mastercard Prepaid Management Services Ltd,PIN029776,914.64,
DFID,CSC,12/10/2017,Scholar Stipend,Award Costs,Mastercard Prepaid Management Services Ltd,PIN029776,4483.35,
DFID,CSC,12/10/2017,Scholar Allowances,Award Costs,Mastercard Prepaid Management Services Ltd,PIN029776,100,
DFID,CSC,12/10/2017,Award Support Costs,Award Costs,Mastercard Prepaid Management Services Ltd,PIN029776,425,
DFID,CSC,12/10/2017,Visa Costs,Award Costs,Mastercard Prepaid Management Services Ltd,PIN029776,235,
DFID,CSC,12/10/2017,Scholar Allowances,Award Costs,Mastercard Prepaid Management Services Ltd,PIN029776,914.64,
DFID,CSC,12/10/2017,Scholar Stipend,Award Costs,Mastercard Prepaid Management Services Ltd,PIN029776,4536.8,
DFID,CSC,12/10/2017,Scholar Allowances,Award Costs,Mastercard Prepaid Management Services Ltd,PIN029776,414,
DFID,CSC,12/10/2017,Scholar Stipend,Award Costs,Mastercard Prepaid Management Services Ltd,PIN029776,2969.76,
DFID,CSC,12/10/2017,Scholar Allowances,Award Costs,Mastercard Prepaid Management Services Ltd,PIN029776,414,
DFID,CSC,12/10/2017,Scholar Stipend,Award Costs,Mastercard Prepaid Management Services Ltd,PIN029776,2969.76,
DFID,CSC,12/10/2017,Visa Costs,Award Costs,Mastercard Prepaid Management Services Ltd,PIN029776,235,
DFID,CSC,13/10/2017,Engagement,Admin Costs,TFW Printers,PIN029458,450,
DFID,CSC,13/10/2017,Engagement,Admin Costs,TFW Printers,PIN029458,90,
DFID,CSC,13/10/2017,Scholar Allowances,Award Costs,Scholar,PIN029460,600,
DFID,CSC,13/10/2017,Scholar Allowances,Award Costs,Scholar,PIN029461,600,
DFID,CSC,13/10/2017,Scholar Allowances,Award Costs,Scholar,PIN029462,574,
DFID,CSC,13/10/2017,Scholar Advances,Award Costs,Scholar,PIN029464,500,
DFID,CSC,13/10/2017,Scholar Stipend,Award Costs,Scholar,PIN029465,532.5,
DFID,CSC,13/10/2017,Scholar Stipend,Award Costs,Scholar,PIN029470,1597.5,
DFID,CSC,13/10/2017,Tuition Fee,Award Costs,Birmingham City University,PIN029472,12000,
DFID,CSC,13/10/2017,Tuition Fee,Award Costs,Birmingham City University,PIN029473,-2400,
DFID,CSC,13/10/2017,Award Support Grant,Award Costs,University of Bristol,PIN029474,7000,
DFID,CSC,13/10/2017,Tuition Fee,Award Costs,University of Southampton,PIN029475,17088,
DFID,CSC,13/10/2017,Tuition Fee,Award Costs,University of Southampton,PIN029476,16440,
DFID,CSC,13/10/2017,Tuition Fee,Award Costs,University of Southampton,PIN029477,20550,
DFID,CSC,13/10/2017,Tuition Fee,Award Costs,University of Southampton,PIN029478,16440,
DFID,CSC,13/10/2017,Tuition Fee,Award Costs,The University of Warwick,PIN029479,22500,
DFID,CSC,13/10/2017,Tuition Fee,Award Costs,The University of Warwick,PIN029480,16584,
DFID,CSC,13/10/2017,Tuition Fee,Award Costs,The University of Warwick,PIN029481,12984,
DFID,CSC,13/10/2017,Tuition Fee,Award Costs,The University of Warwick,PIN029482,18625,
DFID,CSC,13/10/2017,Tuition Fee,Award Costs,The University of Warwick,PIN029483,22500,
DFID,CSC,13/10/2017,Tuition Fee,Award Costs,The University of Warwick,PIN029484,18380,
DFID,CSC,13/10/2017,Tuition Fee,Award Costs,University of Portsmouth,PIN029485,11520,
DFID,CSC,13/10/2017,Tuition Fee,Award Costs,University of Portsmouth,PIN029486,7400,
DFID,CSC,13/10/2017,Tuition Fee,Award Costs,University of Hull,PIN029488,9840,
DFID,CSC,13/10/2017,Tuition Fee,Award Costs,Coventry University,PIN029489,14311,
DFID,CSC,13/10/2017,Tuition Fee,Award Costs,Coventry University,PIN029490,12656,
DFID,CSC,13/10/2017,Tuition Fee,Award Costs,The University of Salford,PIN029491,9840,
DFID,CSC,13/10/2017,Tuition Fee,Award Costs,Linacre College Oxford,PIN029492,22500,
DFID,CSC,13/10/2017,Tuition Fee,Award Costs,Linacre College Oxford,PIN029493,22356,
DFID,CSC,13/10/2017,Scholar Allowances,Award Costs,Scholar,PIN029494,848.9,
DFID,CSC,13/10/2017,Scholar Allowances,Award Costs,Scholar,PIN029495,1264.41,
DFID,CSC,13/10/2017,Scholar Allowances,Award Costs,Scholar,PIN029496,767.95,
DFID,CSC,13/10/2017,Scholar Allowances,Award Costs,Scholar,PIN029497,767.95,
DFID,CSC,13/10/2017,Scholar Allowances,Award Costs,Scholar,PIN029498,804.74,
DFID,CSC,13/10/2017,Scholar Allowances,Award Costs,Scholar,PIN029500,1656.59,
DFID,CSC,13/10/2017,Scholar Allowances,Award Costs,Scholar,PIN029501,1656.59,
DFID,CSC,13/10/2017,Scholar Allowances,Award Costs,Scholar,PIN029502,804.74,
DFID,CSC,13/10/2017,Scholar Allowances,Award Costs,Scholar,PIN029503,1198.57,
DFID,CSC,13/10/2017,Scholar Allowances,Award Costs,Scholar,PIN029504,1381.07,
DFID,CSC,16/10/2017,Bank Charges,Award Costs,Mastercard Prepaid Management Services Ltd,PIN029777,271.67,
DFID,CSC,16/10/2017,Scholar Allowances,Award Costs,Mastercard Prepaid Management Services Ltd,PIN029777,687,
DFID,CSC,16/10/2017,Scholar Allowances,Award Costs,Mastercard Prepaid Management Services Ltd,PIN029777,1416.04,
DFID,CSC,16/10/2017,Scholar Allowances,Award Costs,Mastercard Prepaid Management Services Ltd,PIN029777,732.17,
DFID,CSC,16/10/2017,Scholar Allowances,Award Costs,Mastercard Prepaid Management Services Ltd,PIN029777,732.17,
DFID,CSC,16/10/2017,Visa Costs,Award Costs,Mastercard Prepaid Management Services Ltd,PIN029777,70,
DFID,CSC,16/10/2017,Visa Costs,Award Costs,Mastercard Prepaid Management Services Ltd,PIN029777,70,
DFID,CSC,16/10/2017,Visa Costs,Award Costs,Mastercard Prepaid Management Services Ltd,PIN029777,70,
DFID,CSC,16/10/2017,Visa Costs,Award Costs,Mastercard Prepaid Management Services Ltd,PIN029777,70,
DFID,CSC,16/10/2017,Visa Costs,Award Costs,Mastercard Prepaid Management Services Ltd,PIN029777,70,
DFID,CSC,16/10/2017,Visa Costs,Award Costs,Mastercard Prepaid Management Services Ltd,PIN029777,91,
DFID,CSC,16/10/2017,Visa Costs,Award Costs,Mastercard Prepaid Management Services Ltd,PIN029777,91,
DFID,CSC,16/10/2017,Visa Costs,Award Costs,Mastercard Prepaid Management Services Ltd,PIN029777,109,
DFID,CSC,16/10/2017,Visa Costs,Award Costs,Mastercard Prepaid Management Services Ltd,PIN029777,113,
DFID,CSC,16/10/2017,Visa Costs,Award Costs,Mastercard Prepaid Management Services Ltd,PIN029777,113,
DFID,CSC,16/10/2017,Visa Costs,Award Costs,Mastercard Prepaid Management Services Ltd,PIN029777,64,
DFID,CSC,16/10/2017,Visa Costs,Award Costs,Mastercard Prepaid Management Services Ltd,PIN029777,64,
DFID,CSC,16/10/2017,Scholar Allowances,Award Costs,Mastercard Prepaid Management Services Ltd,PIN029777,100,
DFID,CSC,16/10/2017,Visa Costs,Award Costs,Mastercard Prepaid Management Services Ltd,PIN029777,179,
DFID,CSC,16/10/2017,Scholar Allowances,Award Costs,Mastercard Prepaid Management Services Ltd,PIN029777,990,
DFID,CSC,16/10/2017,Scholar Stipend,Award Costs,Mastercard Prepaid Management Services Ltd,PIN029777,4162.65,
DFID,CSC,16/10/2017,Immigration Health Surcharge,Award Costs,Mastercard Prepaid Management Services Ltd,PIN029777,200,
DFID,CSC,16/10/2017,Scholar Allowances,Award Costs,Mastercard Prepaid Management Services Ltd,PIN029777,100,
DFID,CSC,16/10/2017,Scholar Stipend,Award Costs,Mastercard Prepaid Management Services Ltd,PIN029777,4269.55,
DFID,CSC,16/10/2017,Scholar Allowances,Award Costs,Mastercard Prepaid Management Services Ltd,PIN029777,100,
DFID,CSC,16/10/2017,Visa Costs,Award Costs,Mastercard Prepaid Management Services Ltd,PIN029777,235,
DFID,CSC,16/10/2017,Scholar Allowances,Award Costs,Mastercard Prepaid Management Services Ltd,PIN029777,914.64,
DFID,CSC,16/10/2017,Scholar Stipend,Award Costs,Mastercard Prepaid Management Services Ltd,PIN029777,4376.45,
DFID,CSC,16/10/2017,Scholar Allowances,Award Costs,Mastercard Prepaid Management Services Ltd,PIN029777,100,
DFID,CSC,16/10/2017,Visa Costs,Award Costs,Mastercard Prepaid Management Services Ltd,PIN029777,179,
DFID,CSC,16/10/2017,Scholar Allowances,Award Costs,Mastercard Prepaid Management Services Ltd,PIN029777,990,
DFID,CSC,16/10/2017,Scholar Stipend,Award Costs,Mastercard Prepaid Management Services Ltd,PIN029777,4483.35,
DFID,CSC,16/10/2017,Scholar Allowances,Award Costs,Mastercard Prepaid Management Services Ltd,PIN029777,990,
DFID,CSC,16/10/2017,Visa Costs,Award Costs,Mastercard Prepaid Management Services Ltd,PIN029777,235,
DFID,CSC,17/10/2017,Bank Charges,Award Costs,Mastercard Prepaid Management Services Ltd,PIN029778,131.71,
DFID,CSC,17/10/2017,Scholar Allowances,Award Costs,Mastercard Prepaid Management Services Ltd,PIN029778,414,
DFID,CSC,17/10/2017,Scholar Stipend,Award Costs,Mastercard Prepaid Management Services Ltd,PIN029778,2689.84,
DFID,CSC,17/10/2017,Immigration Health Surcharge,Award Costs,Mastercard Prepaid Management Services Ltd,PIN029778,200,
DFID,CSC,17/10/2017,Scholar Allowances,Award Costs,Mastercard Prepaid Management Services Ltd,PIN029778,100,
DFID,CSC,17/10/2017,Visa Costs,Award Costs,Mastercard Prepaid Management Services Ltd,PIN029778,235,
DFID,CSC,17/10/2017,Scholar Stipend,Award Costs,Mastercard Prepaid Management Services Ltd,PIN029778,5298.27,
DFID,CSC,17/10/2017,Scholar Allowances,Award Costs,Mastercard Prepaid Management Services Ltd,PIN029778,414,
DFID,CSC,17/10/2017,Scholar Stipend,Award Costs,Mastercard Prepaid Management Services Ltd,PIN029778,2829.8,
DFID,CSC,17/10/2017,Scholar Allowances,Award Costs,Mastercard Prepaid Management Services Ltd,PIN029778,990,
DFID,CSC,18/10/2017,Bank Charges,Award Costs,Mastercard Prepaid Management Services Ltd,PIN029779,37.55,
DFID,CSC,18/10/2017,Scholar Allowances,Award Costs,Mastercard Prepaid Management Services Ltd,PIN029779,414,
DFID,CSC,18/10/2017,Scholar Stipend,Award Costs,Mastercard Prepaid Management Services Ltd,PIN029779,3341.47,
DFID,CSC,19/10/2017,Bank Charges,Award Costs,Mastercard Prepaid Management Services Ltd,PIN029780,162.04,
DFID,CSC,19/10/2017,Scholar Allowances,Award Costs,Mastercard Prepaid Management Services Ltd,PIN029780,414,
DFID,CSC,19/10/2017,Scholar Stipend,Award Costs,Mastercard Prepaid Management Services Ltd,PIN029780,2199.98,
DFID,CSC,19/10/2017,Scholar Allowances,Award Costs,Mastercard Prepaid Management Services Ltd,PIN029780,414,
DFID,CSC,19/10/2017,Scholar Stipend,Award Costs,Mastercard Prepaid Management Services Ltd,PIN029780,2444.91,
DFID,CSC,19/10/2017,Immigration Health Surcharge,Award Costs,Mastercard Prepaid Management Services Ltd,PIN029780,200,
DFID,CSC,19/10/2017,Scholar Allowances,Award Costs,Mastercard Prepaid Management Services Ltd,PIN029780,100,
DFID,CSC,19/10/2017,Visa Costs,Award Costs,Mastercard Prepaid Management Services Ltd,PIN029780,235,
DFID,CSC,19/10/2017,Scholar Allowances,Award Costs,Mastercard Prepaid Management Services Ltd,PIN029780,990,
DFID,CSC,19/10/2017,Scholar Stipend,Award Costs,Mastercard Prepaid Management Services Ltd,PIN029780,3788.5,
DFID,CSC,19/10/2017,Visa Costs,Award Costs,Mastercard Prepaid Management Services Ltd,PIN029780,235,
DFID,CSC,19/10/2017,Scholar Allowances,Award Costs,Mastercard Prepaid Management Services Ltd,PIN029780,447.92,
DFID,CSC,19/10/2017,Scholar Stipend,Award Costs,Mastercard Prepaid Management Services Ltd,PIN029780,1948.58,
DFID,CSC,19/10/2017,Visa Costs,Award Costs,Mastercard Prepaid Management Services Ltd,PIN029780,235,
DFID,CSC,19/10/2017,Scholar Allowances,Award Costs,Mastercard Prepaid Management Services Ltd,PIN029780,559.9,
DFID,CSC,19/10/2017,Scholar Stipend,Award Costs,Mastercard Prepaid Management Services Ltd,PIN029780,1990.05,
DFID,CSC,20/10/2017,Secretariat Travel,Admin Costs,Association of Commonwealth Univs,PIN029518,21.24,
DFID,CSC,20/10/2017,Secretariat Travel,Admin Costs,Association of Commonwealth Univs,PIN029518,19.2,
DFID,CSC,20/10/2017,Secretariat Travel,Admin Costs,Association of Commonwealth Univs,PIN029518,6.2,
DFID,CSC,20/10/2017,Secretariat Travel,Admin Costs,Association of Commonwealth Univs,PIN029518,2.16,
DFID,CSC,20/10/2017,Secretariat Travel,Admin Costs,Association of Commonwealth Univs,PIN029518,7.56,
DFID,CSC,20/10/2017,Secretariat Travel,Admin Costs,Association of Commonwealth Univs,PIN029518,7.16,
DFID,CSC,20/10/2017,Secretariat Travel,Admin Costs,Association of Commonwealth Univs,PIN029518,3.86,
DFID,CSC,20/10/2017,Secretariat Travel,Admin Costs,Association of Commonwealth Univs,PIN029518,2.28,
DFID,CSC,20/10/2017,Secretariat Travel,Admin Costs,Association of Commonwealth Univs,PIN029518,6.3,
DFID,CSC,20/10/2017,Secretariat Travel,Admin Costs,Association of Commonwealth Univs,PIN029518,100.22,
DFID,CSC,20/10/2017,Secretariat Travel,Admin Costs,Association of Commonwealth Univs,PIN029518,35.04,
DFID,CSC,20/10/2017,Secretariat Travel,Admin Costs,Association of Commonwealth Univs,PIN029518,23.4,
DFID,CSC,20/10/2017,Engagement,Admin Costs,Association of Commonwealth Univs,PIN029518,47.05,
DFID,CSC,20/10/2017,Engagement,Admin Costs,Association of Commonwealth Univs,PIN029518,46.91,
DFID,CSC,20/10/2017,Scholar Engagement,Programme Costs,Association of Commonwealth Univs,PIN029518,39.6,
DFID,CSC,20/10/2017,Secretariat Travel,Admin Costs,Association of Commonwealth Univs,PIN029518,285.66,
DFID,CSC,20/10/2017,Scholar Engagement,Programme Costs,Association of Commonwealth Univs,PIN029518,10.8,
DFID,CSC,20/10/2017,Scholar Engagement,Programme Costs,Association of Commonwealth Univs,PIN029518,39.11,
DFID,CSC,20/10/2017,Scholar Engagement,Programme Costs,Association of Commonwealth Univs,PIN029518,15.61,
DFID,CSC,20/10/2017,Secretariat Travel,Admin Costs,Association of Commonwealth Univs,PIN029518,4.8,
DFID,CSC,20/10/2017,Secretariat Travel,Admin Costs,Association of Commonwealth Univs,PIN029518,2.4,
DFID,CSC,20/10/2017,Secretariat Travel,Admin Costs,Association of Commonwealth Univs,PIN029518,2.4,
DFID,CSC,20/10/2017,Commission Meetings,Admin Costs,Association of Commonwealth Univs,PIN029518,23.84,
DFID,CSC,20/10/2017,Scholar Engagement,Programme Costs,Association of Commonwealth Univs,PIN029518,71.46,
DFID,CSC,20/10/2017,Postage & Courier,Admin Costs,Association of Commonwealth Univs,PIN029518,2.04,
DFID,CSC,20/10/2017,Postage & Courier,Admin Costs,Association of Commonwealth Univs,PIN029518,58.79,
DFID,CSC,20/10/2017,Alumni Engagement,Programme Costs,Association of Commonwealth Univs,PIN029518,20.58,
DFID,CSC,20/10/2017,Alumni Engagement,Programme Costs,Association of Commonwealth Univs,PIN029518,8.78,
DFID,CSC,20/10/2017,Alumni Engagement,Programme Costs,Association of Commonwealth Univs,PIN029518,122.88,
DFID,CSC,20/10/2017,Alumni Engagement,Admin Costs,Association of Commonwealth Univs,PIN029518,570.79,
DFID,CSC,20/10/2017,Postage & Courier,Admin Costs,Association of Commonwealth Univs,PIN029518,2.64,
DFID,CSC,20/10/2017,Postage & Courier,Admin Costs,Association of Commonwealth Univs,PIN029518,130.49,
DFID,CSC,20/10/2017,Alumni Engagement,Programme Costs,Association of Commonwealth Univs,PIN029518,7.4,
DFID,CSC,20/10/2017,Alumni Engagement,Programme Costs,Association of Commonwealth Univs,PIN029518,23.6,
DFID,CSC,20/10/2017,Alumni Engagement,Programme Costs,Association of Commonwealth Univs,PIN029518,7.68,
DFID,CSC,20/10/2017,Alumni Engagement,Admin Costs,Association of Commonwealth Univs,PIN029518,507.68,
DFID,CSC,20/10/2017,Alumni Engagement,Programme Costs,Association of Commonwealth Univs,PIN029518,60.64,
DFID,CSC,20/10/2017,Alumni Engagement,Programme Costs,Association of Commonwealth Univs,PIN029518,65.18,
DFID,CSC,20/10/2017,Alumni Engagement,Programme Costs,Association of Commonwealth Univs,PIN029518,10.79,
DFID,CSC,20/10/2017,Alumni Engagement,Admin Costs,Association of Commonwealth Univs,PIN029518,258.43,
DFID,CSC,20/10/2017,Postage & Courier,Admin Costs,Association of Commonwealth Univs,PIN029518,122.1,
DFID,CSC,20/10/2017,Postage & Courier,Admin Costs,Association of Commonwealth Univs,PIN029518,258.59,
DFID,CSC,20/10/2017,Alumni Engagement,Programme Costs,Association of Commonwealth Univs,PIN029518,12.55,
DFID,CSC,20/10/2017,Alumni Engagement,Programme Costs,Association of Commonwealth Univs,PIN029518,1.88,
DFID,CSC,20/10/2017,Alumni Engagement,Programme Costs,Association of Commonwealth Univs,PIN029518,14.29,
DFID,CSC,20/10/2017,Alumni Engagement,Admin Costs,Association of Commonwealth Univs,PIN029518,190.37,
DFID,CSC,20/10/2017,Secretariat Travel,Admin Costs,Association of Commonwealth Univs,PIN029518,58,
DFID,CSC,20/10/2017,Engagement,Admin Costs,Association of Commonwealth Univs,PIN029518,24,
DFID,CSC,20/10/2017,Engagement,Admin Costs,Association of Commonwealth Univs,PIN029518,49.87,
DFID,CSC,20/10/2017,Scholar Engagement,Programme Costs,Association of Commonwealth Univs,PIN029518,5.88,
DFID,CSC,20/10/2017,Scholar Engagement,Programme Costs,Association of Commonwealth Univs,PIN029518,20.58,
DFID,CSC,20/10/2017,Scholar Engagement,Programme Costs,Association of Commonwealth Univs,PIN029518,12.12,
DFID,CSC,20/10/2017,Scholar Engagement,Programme Costs,Association of Commonwealth Univs,PIN029518,43.86,
DFID,CSC,20/10/2017,Scholar Engagement,Programme Costs,Association of Commonwealth Univs,PIN029518,14.46,
DFID,CSC,20/10/2017,Engagement,Admin Costs,Association of Commonwealth Univs,PIN029518,643.2,
DFID,CSC,20/10/2017,Secretariat Travel,Admin Costs,Association of Commonwealth Univs,PIN029518,9.24,
DFID,CSC,20/10/2017,Engagement,Admin Costs,Association of Commonwealth Univs,PIN029518,49.01,
DFID,CSC,20/10/2017,Engagement,Admin Costs,Association of Commonwealth Univs,PIN029518,46.82,
DFID,CSC,20/10/2017,Scholar Travel,Award Costs,Scholar,PIN029520,720.66,
DFID,CSC,20/10/2017,Scholar Stipend,Award Costs,Scholar,PIN029523,3690.9,
DFID,CSC,20/10/2017,Scholar Travel,Award Costs,Diversity Travel,PIN029527,647.1,
DFID,CSC,20/10/2017,Scholar Travel,Award Costs,Diversity Travel,PIN029527,874.2,
DFID,CSC,20/10/2017,Scholar Travel,Award Costs,Diversity Travel,PIN029527,350.57,
DFID,CSC,20/10/2017,Scholar Travel,Award Costs,Diversity Travel,PIN029527,534.4,
DFID,CSC,20/10/2017,Scholar Travel,Award Costs,Diversity Travel,PIN029527,639.44,
DFID,CSC,20/10/2017,Scholar Travel,Award Costs,Diversity Travel,PIN029527,499.46,
DFID,CSC,20/10/2017,Scholar Travel,Award Costs,Diversity Travel,PIN029527,14.5,
DFID,CSC,20/10/2017,Scholar Travel,Award Costs,Diversity Travel,PIN029527,417.22,
DFID,CSC,20/10/2017,Scholar Travel,Award Costs,Diversity Travel,PIN029527,533.4,
DFID,CSC,20/10/2017,Scholar Travel,Award Costs,Diversity Travel,PIN029527,451.6,
DFID,CSC,20/10/2017,Scholar Travel,Award Costs,Diversity Travel,PIN029527,12,
DFID,CSC,20/10/2017,Scholar Travel,Award Costs,Diversity Travel,PIN029527,861.66,
DFID,CSC,20/10/2017,Scholar Travel,Award Costs,Diversity Travel,PIN029527,318.3,
DFID,CSC,20/10/2017,Scholar Travel,Award Costs,Diversity Travel,PIN029527,764.07,
DFID,CSC,20/10/2017,Scholar Travel,Award Costs,Diversity Travel,PIN029527,698.14,
DFID,CSC,20/10/2017,Scholar Travel,Award Costs,Diversity Travel,PIN029527,371.9,
DFID,CSC,20/10/2017,Scholar Travel,Award Costs,Diversity Travel,PIN029527,565.17,
DFID,CSC,20/10/2017,Scholar Travel,Award Costs,Diversity Travel,PIN029527,645.29,
DFID,CSC,20/10/2017,Scholar Travel,Award Costs,Diversity Travel,PIN029527,1253.47,
DFID,CSC,20/10/2017,Scholar Travel,Award Costs,Diversity Travel,PIN029527,197.4,
DFID,CSC,20/10/2017,Scholar Travel,Award Costs,Diversity Travel,PIN029528,479.42,
DFID,CSC,20/10/2017,Scholar Travel,Award Costs,Diversity Travel,PIN029528,690,
DFID,CSC,20/10/2017,Scholar Travel,Award Costs,Diversity Travel,PIN029528,511.3,
DFID,CSC,20/10/2017,Scholar Travel,Award Costs,Diversity Travel,PIN029528,869.19,
DFID,CSC,20/10/2017,Scholar Travel,Award Costs,Diversity Travel,PIN029528,426.7,
DFID,CSC,20/10/2017,Scholar Travel,Award Costs,Diversity Travel,PIN029528,991.8,
DFID,CSC,20/10/2017,Scholar Travel,Award Costs,Diversity Travel,PIN029528,866.53,
DFID,CSC,20/10/2017,Scholar Travel,Award Costs,Diversity Travel,PIN029528,370.1,
DFID,CSC,20/10/2017,Scholar Travel,Award Costs,Diversity Travel,PIN029528,479,
DFID,CSC,20/10/2017,Scholar Travel,Award Costs,Diversity Travel,PIN029528,877.01,
DFID,CSC,20/10/2017,Scholar Travel,Award Costs,Diversity Travel,PIN029528,854.6,
DFID,CSC,20/10/2017,Scholar Travel,Award Costs,Diversity Travel,PIN029528,379.7,
DFID,CSC,20/10/2017,Scholar Travel,Award Costs,Diversity Travel,PIN029528,550,
DFID,CSC,20/10/2017,Scholar Travel,Award Costs,Diversity Travel,PIN029528,517.7,
DFID,CSC,20/10/2017,Fieldwork Airfare,Award Costs,Diversity Travel,PIN029528,726.19,
DFID,CSC,20/10/2017,Scholar Travel,Award Costs,Diversity Travel,PIN029528,321.2,
DFID,CSC,20/10/2017,Scholar Travel,Award Costs,Diversity Travel,PIN029528,894.92,
DFID,CSC,20/10/2017,Scholar Travel,Award Costs,Diversity Travel,PIN029528,914.7,
DFID,CSC,20/10/2017,Scholar Travel,Award Costs,Diversity Travel,PIN029528,260.1,
DFID,CSC,20/10/2017,Scholar Travel,Award Costs,Diversity Travel,PIN029528,887.92,
DFID,CSC,20/10/2017,Scholar Travel,Award Costs,Diversity Travel,PIN029528,519,
DFID,CSC,20/10/2017,Scholar Travel,Award Costs,Diversity Travel,PIN029528,347,
DFID,CSC,20/10/2017,Scholar Travel,Award Costs,Diversity Travel,PIN029528,347,
DFID,CSC,20/10/2017,Scholar Travel,Award Costs,Diversity Travel,PIN029528,18.5,
DFID,CSC,20/10/2017,Scholar Travel,Award Costs,Diversity Travel,PIN029528,439.14,
DFID,CSC,20/10/2017,Scholar Travel,Award Costs,Diversity Travel,PIN029528,635.79,
DFID,CSC,20/10/2017,Scholar Travel,Award Costs,Diversity Travel,PIN029528,292.9,
DFID,CSC,20/10/2017,Scholar Travel,Award Costs,Diversity Travel,PIN029528,687.82,
DFID,CSC,20/10/2017,Scholar Travel,Award Costs,Diversity Travel,PIN029528,1199.4,
DFID,CSC,20/10/2017,Scholar Travel,Award Costs,Diversity Travel,PIN029529,395.09,
DFID,CSC,20/10/2017,Scholar Travel,Award Costs,Diversity Travel,PIN029529,650,
DFID,CSC,20/10/2017,Fieldwork Airfare,Award Costs,Diversity Travel,PIN029529,703.69,
DFID,CSC,20/10/2017,Scholar Travel,Award Costs,Diversity Travel,PIN029529,28,
DFID,CSC,20/10/2017,Scholar Travel,Award Costs,Diversity Travel,PIN029529,512.47,
DFID,CSC,20/10/2017,Scholar Travel,Award Costs,Diversity Travel,PIN029529,731.74,
DFID,CSC,20/10/2017,Scholar Travel,Award Costs,Diversity Travel,PIN029529,731.74,
DFID,CSC,20/10/2017,Scholar Travel,Award Costs,Diversity Travel,PIN029529,731.44,
DFID,CSC,20/10/2017,Scholar Travel,Award Costs,Diversity Travel,PIN029529,1181.89,
DFID,CSC,20/10/2017,Fieldwork Airfare,Award Costs,Diversity Travel,PIN029529,658.28,
DFID,CSC,20/10/2017,Scholar Travel,Award Costs,Diversity Travel,PIN029529,836.59,
DFID,CSC,20/10/2017,Scholar Travel,Award Costs,Diversity Travel,PIN029529,861.31,
DFID,CSC,20/10/2017,Fieldwork Airfare,Award Costs,Diversity Travel,PIN029529,57.9,
DFID,CSC,20/10/2017,Scholar Travel,Award Costs,Diversity Travel,PIN029530,507.4,
DFID,CSC,20/10/2017,Scholar Travel,Award Costs,Diversity Travel,PIN029530,310.2,
DFID,CSC,20/10/2017,Scholar Travel,Award Costs,Diversity Travel,PIN029530,409.97,
DFID,CSC,20/10/2017,Fieldwork Airfare,Award Costs,Diversity Travel,PIN029530,808.27,
DFID,CSC,20/10/2017,Scholar Travel,Award Costs,Diversity Travel,PIN029530,312.9,
DFID,CSC,20/10/2017,Scholar Travel,Award Costs,Diversity Travel,PIN029530,496.97,
DFID,CSC,20/10/2017,Scholar Travel,Award Costs,Diversity Travel,PIN029530,349.09,
DFID,CSC,20/10/2017,Fieldwork Airfare,Award Costs,Diversity Travel,PIN029530,203,
DFID,CSC,20/10/2017,Scholar Travel,Award Costs,Diversity Travel,PIN029530,400.77,
DFID,CSC,20/10/2017,Scholar Travel,Award Costs,Diversity Travel,PIN029530,731.9,
DFID,CSC,20/10/2017,Scholar Travel,Award Costs,Diversity Travel,PIN029530,390.69,
DFID,CSC,20/10/2017,Scholar Travel,Award Costs,Diversity Travel,PIN029530,492.97,
DFID,CSC,20/10/2017,Scholar Travel,Award Costs,Diversity Travel,PIN029530,664.6,
DFID,CSC,20/10/2017,Scholar Travel,Award Costs,Diversity Travel,PIN029530,418.14,
DFID,CSC,20/10/2017,Scholar Travel,Award Costs,Diversity Travel,PIN029530,347.67,
DFID,CSC,20/10/2017,Scholar Travel,Award Costs,Diversity Travel,PIN029530,485.67,
DFID,CSC,20/10/2017,Scholar Travel,Award Costs,Diversity Travel,PIN029530,400.17,
DFID,CSC,20/10/2017,Scholar Travel,Award Costs,Diversity Travel,PIN029530,464.23,
DFID,CSC,20/10/2017,Scholar Travel,Award Costs,Diversity Travel,PIN029530,95,
DFID,CSC,20/10/2017,Scholar Travel,Award Costs,Diversity Travel,PIN029530,453.97,
DFID,CSC,20/10/2017,Scholar Travel,Award Costs,Diversity Travel,PIN029530,361.13,
DFID,CSC,20/10/2017,Scholar Travel,Award Costs,Diversity Travel,PIN029530,500.23,
DFID,CSC,20/10/2017,Scholar Travel,Award Costs,Diversity Travel,PIN029530,310.1,
DFID,CSC,20/10/2017,Scholar Travel,Award Costs,Diversity Travel,PIN029530,101,
DFID,CSC,20/10/2017,Scholar Travel,Award Costs,Diversity Travel,PIN029530,585.37,
DFID,CSC,20/10/2017,Scholar Travel,Award Costs,Diversity Travel,PIN029530,619.63,
DFID,CSC,20/10/2017,Scholar Travel,Award Costs,Diversity Travel,PIN029530,423.85,
DFID,CSC,20/10/2017,Tuition Fee,Award Costs,Birkbeck College,PIN029531,9596,
DFID,CSC,20/10/2017,Tuition Fee,Award Costs,University of Sheffield,PIN029532,15200,
DFID,CSC,20/10/2017,Tuition Fee,Award Costs,Liverpool Hope University,PIN029533,11200,
DFID,CSC,20/10/2017,Tuition Fee,Award Costs,Liverpool Hope University,PIN029534,11200,
DFID,CSC,20/10/2017,Tuition Fee,Award Costs,Liverpool Hope University,PIN029535,11200,
DFID,CSC,20/10/2017,Tuition Fee,Award Costs,The University of Warwick,PIN029536,18380,
DFID,CSC,20/10/2017,Tuition Fee,Award Costs,Kings College London,PIN029537,14280,
DFID,CSC,20/10/2017,Tuition Fee,Award Costs,Kings College London,PIN029538,14280,
DFID,CSC,20/10/2017,Tuition Fee,Award Costs,Kings College London,PIN029539,14280,
DFID,CSC,20/10/2017,Tuition Fee,Award Costs,Kings College London,PIN029540,14280,
DFID,CSC,20/10/2017,Award Support Grant,Award Costs,University of Reading,PIN029541,800,
DFID,CSC,20/10/2017,Tuition Fee,Award Costs,University of Reading,PIN029541,10707.2,
DFID,CSC,20/10/2017,Tuition Fee,Award Costs,Harper Adams University,PIN029542,10000,
DFID,CSC,20/10/2017,Award Support Grant,Award Costs,Lond Sch Hygiene & Tropical Me,PIN029543,5000,
DFID,CSC,20/10/2017,Tuition Fee,Award Costs,Lond Sch Hygiene & Tropical Me,PIN029544,12160,
DFID,CSC,20/10/2017,Tuition Fee,Award Costs,Lond Sch Hygiene & Tropical Me,PIN029545,12160,
DFID,CSC,20/10/2017,Tuition Fee,Award Costs,Lond Sch Hygiene & Tropical Me,PIN029546,12160,
DFID,CSC,20/10/2017,Tuition Fee,Award Costs,Lond Sch Hygiene & Tropical Me,PIN029547,17200,
DFID,CSC,20/10/2017,Tuition Fee,Award Costs,Lond Sch Hygiene & Tropical Me,PIN029548,17200,
DFID,CSC,20/10/2017,Award Support Grant,Award Costs,Lond Sch Hygiene & Tropical Me,PIN029549,5000,
DFID,CSC,20/10/2017,Tuition Fee,Award Costs,Lond Sch Hygiene & Tropical Me,PIN029550,17200,
DFID,CSC,20/10/2017,Tuition Fee,Award Costs,Lond Sch Hygiene & Tropical Me,PIN029551,17200,
DFID,CSC,20/10/2017,Tuition Fee,Award Costs,Lond Sch Hygiene & Tropical Me,PIN029552,17200,
DFID,CSC,20/10/2017,Tuition Fee,Award Costs,Lond Sch Hygiene & Tropical Me,PIN029553,17181,
DFID,CSC,20/10/2017,Tuition Fee,Award Costs,Lond Sch Hygiene & Tropical Me,PIN029554,12160,
DFID,CSC,20/10/2017,Tuition Fee,Award Costs,Brasenose College Oxford,PIN029555,18080,
DFID,CSC,20/10/2017,Tuition Fee,Award Costs,Brasenose College Oxford,PIN029555,3021,
DFE,CSC,20/10/2017,Tuition Fee,Award Costs,St Catherine's College Oxford,PIN029556,19335,
DFE,CSC,20/10/2017,Tuition Fee,Award Costs,St Catherine's College Oxford,PIN029556,3021,
DFID,CSC,20/10/2017,Tuition Fee,Award Costs,University of Dundee,PIN029557,14360,
DFID,CSC,20/10/2017,Tuition Fee,Award Costs,Goldsmiths College,PIN029558,10672,
DFID,CSC,20/10/2017,Tuition Fee,Award Costs,Goldsmiths College,PIN029559,10480,
DFID,CSC,20/10/2017,Tuition Fee,Award Costs,University of Southampton,PIN029561,17800,
DFID,CSC,20/10/2017,Tuition Fee,Award Costs,University of Southampton,PIN029562,16710,
DFID,CSC,20/10/2017,Award Support Grant,Award Costs,University of Bristol,PIN029563,5000,
DFID,CSC,20/10/2017,Tuition Fee,Award Costs,The University of Leeds,PIN029564,16200,
DFID,CSC,20/10/2017,Tuition Fee,Award Costs,The University of Leeds,PIN029565,16200,
DFID,CSC,20/10/2017,Tuition Fee,Award Costs,The University of Leeds,PIN029566,16000,
DFID,CSC,20/10/2017,Tuition Fee,Award Costs,The University of Leeds,PIN029567,6400,
DFID,CSC,20/10/2017,Tuition Fee,Award Costs,The University of Leeds,PIN029568,15800,
DFID,CSC,20/10/2017,Tuition Fee,Award Costs,The University of Leeds,PIN029569,14800,
DFID,CSC,20/10/2017,Tuition Fee,Award Costs,The University of Leeds,PIN029570,17600,
DFID,CSC,20/10/2017,Tuition Fee,Award Costs,The University of Leeds,PIN029571,16000,
DFID,CSC,20/10/2017,Award Support Grant,Award Costs,The University of Leeds,PIN029572,4000,
DFID,CSC,20/10/2017,Award Support Grant,Award Costs,The University of Leeds,PIN029573,4000,
DFID,CSC,20/10/2017,Award Support Grant,Award Costs,University of Hull,PIN029574,20000,
DFID,CSC,20/10/2017,Award Support Grant,Award Costs,University of Newcastle upon Tyne,PIN029575,5000,
DFID,CSC,20/10/2017,Award Support Grant,Award Costs,University of Bradford,PIN029576,2400,
DFID,CSC,20/10/2017,Scholar Allowances,Award Costs,Cranfield University,PIN029577,1525,
DFID,CSC,20/10/2017,Scholar Engagement,Programme Costs,Cumberland Lodge Enterprises Limited,PIN029578,1802,
DFID,CSC,20/10/2017,Scholar Engagement,Programme Costs,Cumberland Lodge Enterprises Limited,PIN029578,1802,
DFID,CSC,20/10/2017,Scholar Engagement,Programme Costs,QUEEN ELIZABETH CENTRE,PIN029579,5796,
DFID,CSC,20/10/2017,Scholar Engagement,Programme Costs,QUEEN ELIZABETH CENTRE,PIN029579,28980,
DFID,CSC,20/10/2017,Scholar Engagement,Programme Costs,TFW Printers,PIN029581,550,
DFID,CSC,20/10/2017,Scholar Stipend,Award Costs,Scholar,PIN029582,1054,
DFID,CSC,20/10/2017,Scholar Stipend,Award Costs,Scholar,PIN029583,4188.83,
DFID,CSC,23/10/2017,Bank Charges,Award Costs,Mastercard Prepaid Management Services Ltd,PIN029781,61.09,
DFID,CSC,23/10/2017,Scholar Stipend,Award Costs,Mastercard Prepaid Management Services Ltd,PIN029781,3179.7,
DFID,CSC,23/10/2017,Scholar Stipend,Award Costs,Mastercard Prepaid Management Services Ltd,PIN029781,2514.89,
DFID,CSC,23/10/2017,Scholar Allowances,Award Costs,Mastercard Prepaid Management Services Ltd,PIN029781,414,
DFID,CSC,25/10/2017,Scholar Allowances,Award Costs,Scholar,PIN029584,325,
DFID,CSC,25/10/2017,Scholar Stipend,Award Costs,Scholar,PIN029584,496.87,
DFID,CSC,25/10/2017,Scholar Allowances,Award Costs,Scholar,PIN029586,731.16,
DFID,CSC,25/10/2017,Scholar Allowances,Award Costs,Scholar,PIN029587,616,
DFID,CSC,25/10/2017,Scholar Allowances,Award Costs,Scholar,PIN029587,616,
DFID,CSC,25/10/2017,Scholar Allowances,Award Costs,Scholar,PIN029588,683.71,
DFID,CSC,25/10/2017,Scholar Allowances,Award Costs,Scholar,PIN029588,713.31,
DFID,CSC,25/10/2017,Bank Charges,Award Costs,Mastercard Prepaid Management Services Ltd,PIN029782,26.25,
DFID,CSC,25/10/2017,Reimbursements,Award Costs,Mastercard Prepaid Management Services Ltd,PIN029782,46,
DFID,CSC,25/10/2017,Scholar Allowances,Award Costs,Mastercard Prepaid Management Services Ltd,PIN029782,414,
DFID,CSC,25/10/2017,Scholar Stipend,Award Costs,Mastercard Prepaid Management Services Ltd,PIN029782,2164.99,
DFID,CSC,26/10/2017,Scholar Stipend,Award Costs,Scholar,PIN029648,2374.93,
DFID,CSC,26/10/2017,Bank Charges,Award Costs,Mastercard Prepaid Management Services Ltd,PIN029783,86.5,
DFID,CSC,26/10/2017,Scholar Allowances,Award Costs,Mastercard Prepaid Management Services Ltd,PIN029783,414,
DFID,CSC,26/10/2017,Scholar Stipend,Award Costs,Mastercard Prepaid Management Services Ltd,PIN029783,2409.92,
DFID,CSC,26/10/2017,Scholar Allowances,Award Costs,Mastercard Prepaid Management Services Ltd,PIN029783,414,
DFID,CSC,26/10/2017,Scholar Stipend,Award Costs,Mastercard Prepaid Management Services Ltd,PIN029783,2409.92,
DFID,CSC,26/10/2017,Visa Costs,Award Costs,Mastercard Prepaid Management Services Ltd,PIN029783,235,
DFID,CSC,26/10/2017,Scholar Allowances,Award Costs,Mastercard Prepaid Management Services Ltd,PIN029783,671.88,
DFID,CSC,26/10/2017,Scholar Stipend,Award Costs,Mastercard Prepaid Management Services Ltd,PIN029783,2094.78,
DFID,CSC,27/10/2017,Bank Charges,Award Costs,Mastercard Prepaid Management Services Ltd,PIN029784,6.87,
DFID,CSC,27/10/2017,Scholar Allowances,Award Costs,Mastercard Prepaid Management Services Ltd,PIN029784,687,
DFID,CSC,30/10/2017,Scholar Allowances,Award Costs,Scholar,PIN029589,422.19,
DFID,CSC,30/10/2017,Scholar Allowances,Award Costs,Scholar,PIN029589,6,
DFID,CSC,30/10/2017,Tuition Fee,Award Costs,Scholar,PIN029589,1065,
DFID,CSC,30/10/2017,Scholar Allowances,Award Costs,Scholar,PIN029595,600,
DFID,CSC,30/10/2017,Award Support Grant,Award Costs,Sheffield Health and Social Care NHS,PIN029597,9000,
DFID,CSC,30/10/2017,Award Support Grant,Award Costs,Sheffield Health and Social Care NHS,PIN029597,2400,
DFID,CSC,30/10/2017,Tuition Fee,Award Costs,The University of Edinburgh,PIN029598,15280,Tuition fees for 2 scholars
DFID,CSC,30/10/2017,Award Support Grant,Award Costs,The University of Edinburgh,PIN029598,5000,
DFID,CSC,30/10/2017,Tuition Fee,Award Costs,The University of Edinburgh,PIN029598,15280,Tuition fees for 2 scholars
DFID,CSC,30/10/2017,Tuition Fee,Award Costs,The University of Edinburgh,PIN029599,15280,
DFID,CSC,30/10/2017,Tuition Fee,Award Costs,University of Glasgow,PIN029600,15600,
DFID,CSC,30/10/2017,Tuition Fee,Award Costs,University of Kent,PIN029601,11048,
DFID,CSC,30/10/2017,Tuition Fee,Award Costs,University of Kent,PIN029602,13376,
DFID,CSC,30/10/2017,Tuition Fee,Award Costs,University of Kent,PIN029603,13768,
DFID,CSC,30/10/2017,Tuition Fee,Award Costs,University of Kent,PIN029604,13184,
DFID,CSC,30/10/2017,Tuition Fee,Award Costs,Imperial College London,PIN029605,18000,
DFID,CSC,30/10/2017,Tuition Fee,Award Costs,Imperial College London,PIN029606,18000,
DFID,CSC,30/10/2017,Tuition Fee,Award Costs,Imperial College London,PIN029607,18000,
DFID,CSC,30/10/2017,Tuition Fee,Award Costs,Imperial College London,PIN029608,18000,
DFID,CSC,30/10/2017,Tuition Fee,Award Costs,Imperial College London,PIN029609,22500,
DFID,CSC,30/10/2017,Tuition Fee,Award Costs,Imperial College London,PIN029610,18000,
DFID,CSC,30/10/2017,Tuition Fee,Award Costs,Imperial College London,PIN029611,18000,
DFID,CSC,30/10/2017,Tuition Fee,Award Costs,Imperial College London,PIN029612,18000,
DFID,CSC,30/10/2017,Tuition Fee,Award Costs,Imperial College London,PIN029613,22500,
DFID,CSC,30/10/2017,Tuition Fee,Award Costs,Imperial College London,PIN029614,18000,
DFID,CSC,30/10/2017,Tuition Fee,Award Costs,Imperial College London,PIN029615,18000,
DFID,CSC,30/10/2017,Tuition Fee,Award Costs,Imperial College London,PIN029616,18000,
DFID,CSC,30/10/2017,Tuition Fee,Award Costs,Imperial College London,PIN029617,18000,
DFID,CSC,30/10/2017,Tuition Fee,Award Costs,Imperial College London,PIN029618,18000,
DFID,CSC,30/10/2017,Tuition Fee,Award Costs,Imperial College London,PIN029619,18000,
DFID,CSC,30/10/2017,Tuition Fee,Award Costs,Imperial College London,PIN029620,18000,
DFID,CSC,30/10/2017,Tuition Fee,Award Costs,Imperial College London,PIN029621,18000,
DFID,CSC,30/10/2017,Tuition Fee,Award Costs,University of Hull,PIN029622,9840,
DFID,CSC,30/10/2017,Tuition Fee,Award Costs,University of Hull,PIN029623,9840,
DFID,CSC,30/10/2017,Tuition Fee,Award Costs,University of Ulster,PIN029624,11008,
DFID,CSC,30/10/2017,Tuition Fee,Award Costs,University of Stirling,PIN029625,18150,Tuition fees for 2 scholars
DFID,CSC,30/10/2017,Tuition Fee,Award Costs,University of Stirling,PIN029625,11680,Tuition fees for 2 scholars
DFID,CSC,30/10/2017,Tuition Fee,Award Costs,University of Stirling,PIN029626,69900,Tuition fees for 5 scholars
DFID,CSC,30/10/2017,Tuition Fee,Award Costs,London South Bank University,PIN029627,12500,
DFID,CSC,30/10/2017,Tuition Fee,Award Costs,University of Leicester,PIN029628,15240,
DFID,CSC,30/10/2017,Tuition Fee,Award Costs,University of Leicester,PIN029629,14600,
DFID,CSC,30/10/2017,Tuition Fee,Award Costs,University of Leicester,PIN029630,14105,
DFID,CSC,30/10/2017,Tuition Fee,Award Costs,Glasgow Caledonian University,PIN029632,12000,
DFID,CSC,30/10/2017,Tuition Fee,Award Costs,University of Sheffield,PIN029633,12800,
DFID,CSC,30/10/2017,Tuition Fee,Award Costs,Glasgow Caledonian University,PIN029634,12000,
DFID,CSC,30/10/2017,Tuition Fee,Award Costs,University of Liverpool,PIN029635,16300,
DFID,CSC,30/10/2017,Tuition Fee,Award Costs,University of Liverpool,PIN029636,16850,
DFID,CSC,30/10/2017,Tuition Fee,Award Costs,Sheffield Hallam Univ,PIN029638,10600,
DFID,CSC,30/10/2017,Tuition Fee,Award Costs,Lond Sch Hygiene & Tropical Me,PIN029639,17200,
DFID,CSC,30/10/2017,Tuition Fee,Award Costs,Lond Sch Hygiene & Tropical Me,PIN029640,12160,
DFID,CSC,30/10/2017,Tuition Fee,Award Costs,University of East Anglia,PIN029641,13880,
DFID,CSC,30/10/2017,Tuition Fee,Award Costs,St Catherine's College Oxford,PIN029642,15468,
DFID,CSC,30/10/2017,Tuition Fee,Award Costs,St Catherine's College Oxford,PIN029642,3021,
DFID,CSC,30/10/2017,Tuition Fee,Award Costs,St Antonys College,PIN029643,14464,
DFID,CSC,30/10/2017,Tuition Fee,Award Costs,St Antonys College,PIN029643,3021,
DFID,CSC,30/10/2017,Scholar Engagement,Programme Costs,Safestay Limited,PIN029644,729,
DFID,CSC,30/10/2017,Scholar Engagement,Programme Costs,Safestay Limited,PIN029644,3645,
DFID,CSC,30/10/2017,Scholar Engagement,Programme Costs,M.J. White Photography,PIN029645,670,
DFID,CSC,30/10/2017,Consulting Fees,Programme Costs,Firetail,PIN029646,3840,
DFID,CSC,30/10/2017,Consulting Fees,Programme Costs,Firetail,PIN029646,19200,
DFID,CSC,31/10/2017,Bank Charges,Award Costs,Mastercard Prepaid Management Services Ltd,PIN029785,69.54,
DFID,CSC,31/10/2017,Scholar Allowances,Award Costs,Mastercard Prepaid Management Services Ltd,PIN029785,100,
DFID,CSC,31/10/2017,Visa Costs,Award Costs,Mastercard Prepaid Management Services Ltd,PIN029785,235,
DFID,CSC,31/10/2017,Scholar Allowances,Award Costs,Mastercard Prepaid Management Services Ltd,PIN029785,990,
DFID,CSC,31/10/2017,Scholar Stipend,Award Costs,Mastercard Prepaid Management Services Ltd,PIN029785,3254,
DFID,CSC,31/10/2017,Scholar Stipend,Award Costs,Mastercard Prepaid Management Services Ltd,PIN029785,2374.93,
DFID,CSC,02/10/2017,Scholar Stipend,Award Costs,Scholar,NOM000647,-1043,
DFID,CSC,31/10/2017,Postage & Courier,Award Costs,DHL,NOM000651,1065.62,
DFID,CSC,31/10/2017,Postage & Courier,Programme Costs,DHL,NOM000651,7.88,
